fUST/lending_fUST_20240123
["ID","MTS","AMOUNT","RATE_DAILY","PERIOD"]
[312534148,1705947540538,-407.72383283,0.00042739,31]
[312534149,1705947540561,-515.2,0.00042739,31]
[312534150,1705947540585,-500.0,0.00042739,31]
[312534151,1705947540609,-500.0,0.00042739,31]
[312534152,1705947540634,-500.0,0.00042739,31]
[312534153,1705947540658,-500.0,0.00042739,31]
[312534154,1705947540682,-500.0,0.00042739,31]
[312534155,1705947540705,-679.61,0.00042739,31]
[312534156,1705947540728,-801.83,0.00042739,31]
[312534157,1705947540751,-1114.81,0.00042739,31]
[312534158,1705947540775,-529.18,0.00042739,31]
[312534159,1705947540798,-768.35,0.00042739,31]
[312534160,1705947540822,-1774.13,0.00042739,31]
[312534161,1705947540846,-604.97,0.00042739,31]
[312534162,1705947540872,-500.0,0.00042739,31]
[312534163,1705947540897,-1732.72,0.00042739,31]
[312534164,1705947540921,-1380.22,0.00042739,31]
[312534165,1705947540945,-873.08,0.00042739,31]
[312534166,1705947540970,-500.0,0.00042739,31]
[312534167,1705947540995,-1700.64,0.00042739,31]
[312534168,1705947541019,-500.0,0.00042739,31]
[312534169,1705947541044,-500.0,0.00042739,31]
[312534170,1705947541069,-638.47,0.00042739,31]
[312534171,1705947541094,-500.0,0.00042739,31]
[312534172,1705947541120,-500.0,0.00042739,31]
[312534173,1705947541145,-500.0,0.00042739,31]
[312534174,1705947541170,-829.19,0.00042739,31]
[312534175,1705947541194,-1817.75,0.00042739,31]
[312534176,1705947541219,-500.0,0.00042739,31]
[312534177,1705947541243,-500.0,0.00042739,31]
[312534178,1705947541266,-1681.68,0.00042739,31]
[312534179,1705947541290,-676.26,0.00042739,31]
[312534180,1705947541429,-500.0,0.00042739,31]
[312534181,1705947541453,-500.0,0.00042739,31]
[312534182,1705947541477,-640.07,0.00042739,31]
[312534183,1705947541502,-552.87,0.00042739,31]
[312534184,1705947541526,-949.36,0.00042739,31]
[312534185,1705947541551,-1114.79,0.00042739,31]
[312534186,1705947541575,-1340.33,0.00042739,31]
[312534187,1705947541599,-1551.85,0.00042739,31]
[312534188,1705947541623,-1962.09,0.00042739,31]
[312534189,1705947541648,-1825.15,0.00042739,31]
[312534190,1705947541673,-2171.83,0.00042739,31]
[312534191,1705947541698,-500.0,0.00042739,31]
[312534192,1705947541722,-1619.98,0.00042739,31]
[312534193,1705947541746,-500.0,0.00042739,31]
[312534194,1705947541771,-741.59,0.00042739,31]
[312534195,1705947541796,-556.47,0.00042739,31]
[312534196,1705947541821,-1775.47,0.00042739,31]
[312534197,1705947541846,-500.0,0.00042739,31]
[312534198,1705947541871,-564.89,0.00042739,31]
[312534199,1705947541896,-1289.28,0.00042739,31]
[312534200,1705947541920,-500.0,0.00042739,31]
[312534201,1705947541944,-1337.29,0.00042739,31]
[312534202,1705947541969,-1443.88,0.00042739,31]
[312534203,1705947541994,-150.0,0.000428,30]
[312534204,1705947542019,-172.64284262,0.00042889,30]
[312534205,1705947542044,-150.0,0.00043,30]
[312534206,1705947542070,-1000.0,0.00043,43]
[312534207,1705947542095,-1000.0,0.00043,43]
[312534208,1705947542123,-10018.50112242,0.00043,31]
[312534209,1705947542148,-1047.38,0.00043013,31]
[312534210,1705947542174,-601.23537287,0.00043013,31]
[312534211,1705947542199,-500.0,0.00043013,31]
[312534212,1705947542223,-571.3,0.00043013,31]
[312534213,1705947542248,-500.0,0.00043013,31]
[312534214,1705947542288,-500.0,0.00043013,31]
[312534215,1705947542317,-500.0,0.00043013,31]
[312534216,1705947542342,-500.0,0.00043013,31]
[312534217,1705947542367,-500.0,0.00043013,31]
[312534218,1705947542390,-226.75013316,0.00043013,31]
[312534219,1705947542416,-567.11,0.00043013,31]
[312534220,1705947542441,-535.67799766,0.00043013,31]
[312534221,1705947542465,-1126.09,0.00043013,31]
[312534222,1705947542490,-1014.23,0.00043013,31]
[312534223,1705947542515,-515.2,0.00043013,31]
[312534224,1705947542539,-500.0,0.00043013,31]
[312534225,1705947542563,-500.0,0.00043013,31]
[312534226,1705947542587,-500.0,0.00043013,31]
[312534227,1705947542611,-500.0,0.00043013,31]
[312534228,1705947542635,-500.0,0.00043013,31]
[312534229,1705947542659,-679.61,0.00043013,31]
[312534230,1705947542682,-801.83,0.00043013,31]
[312534231,1705947542706,-1114.81,0.00043013,31]
[312534232,1705947542730,-529.18,0.00043013,31]
[312534233,1705947542754,-768.35,0.00043013,31]
[312534234,1705947542778,-1774.13,0.00043013,31]
[312534235,1705947542803,-604.97,0.00043013,31]
[312534236,1705947542829,-500.0,0.00043013,31]
[312534237,1705947542855,-1732.72,0.00043013,31]
[312534238,1705947542880,-1380.22,0.00043013,31]
[312534239,1705947542904,-873.08,0.00043013,31]
[312534240,1705947542930,-500.0,0.00043013,31]
[312534241,1705947542954,-1700.64,0.00043013,31]
[312534242,1705947542978,-500.0,0.00043013,31]
[312534243,1705947543003,-500.0,0.00043013,31]
[312534244,1705947543028,-638.47,0.00043013,31]
[312534245,1705947543053,-500.0,0.00043013,31]
[312534246,1705947543076,-500.0,0.00043013,31]
[312534247,1705947543103,-500.0,0.00043013,31]
[312534248,1705947543128,-829.19,0.00043013,31]
[312534249,1705947543153,-1817.75,0.00043013,31]
[312534250,1705947543176,-500.0,0.00043013,31]
[312534251,1705947543200,-500.0,0.00043013,31]
[312534252,1705947543225,-1681.68,0.00043013,31]
[312534253,1705947543250,-676.26,0.00043013,31]
[312534254,1705947543274,-500.0,0.00043013,31]
[312534255,1705947543298,-500.0,0.00043013,31]
[312534256,1705947543323,-640.07,0.00043013,31]
[312534257,1705947543348,-552.87,0.00043013,31]
[312534258,1705947543374,-949.36,0.00043013,31]
[312534259,1705947543398,-1114.79,0.00043013,31]
[312534260,1705947543422,-1340.33,0.00043013,31]
[312534261,1705947543446,-1551.85,0.00043013,31]
[312534262,1705947543470,-1962.09,0.00043013,31]
[312534263,1705947543495,-1825.15,0.00043013,31]
[312534264,1705947543620,-2171.83,0.00043013,31]
[312534265,1705947543646,-500.0,0.00043013,31]
[312534266,1705947543671,-1619.98,0.00043013,31]
[312534267,1705947543700,-500.0,0.00043013,31]
[312534268,1705947543724,-741.59,0.00043013,31]
[312534269,1705947543749,-556.47,0.00043013,31]
[312534270,1705947543775,-1775.47,0.00043013,31]
[312534271,1705947543799,-500.0,0.00043013,31]
[312534272,1705947543825,-564.89,0.00043013,31]
[312534273,1705947543849,-1289.28,0.00043013,31]
[312534274,1705947543878,-500.0,0.00043013,31]
[312534275,1705947543903,-1337.29,0.00043013,31]
[312534276,1705947543929,-1443.88,0.00043013,31]
[312534277,1705947543955,-600.0,0.00043042,30]
[312534278,1705947543981,-298.0,0.00043133,90]
[312534279,1705947544008,-150.0,0.000432,30]
[312534280,1705947544034,-1047.38,0.00043287,31]
[312534281,1705947544060,-500.0,0.00043287,31]
[312534282,1705947544085,-571.3,0.00043287,31]
[312534283,1705947544111,-500.0,0.00043287,31]
[312534284,1705947544139,-500.0,0.00043287,31]
[312534285,1705947544165,-500.0,0.00043287,31]
[312534286,1705947544190,-500.0,0.00043287,31]
[312534287,1705947544215,-567.11,0.00043287,31]
[312534288,1705947544240,-1126.09,0.00043287,31]
[312534289,1705947544264,-1014.23,0.00043287,31]
[312534290,1705947544289,-515.2,0.00043287,31]
[312534291,1705947544313,-500.0,0.00043287,31]
[312534292,1705947544339,-500.0,0.00043287,31]
[312534293,1705947544364,-500.0,0.00043287,31]
[312534294,1705947544390,-500.0,0.00043287,31]
[312534295,1705947544414,-500.0,0.00043287,31]
[312534296,1705947544439,-679.61,0.00043287,31]
[312534297,1705947544463,-801.83,0.00043287,31]
[312534298,1705947544488,-1114.81,0.00043287,31]
[312534299,1705947544512,-529.18,0.00043287,31]
[312534300,1705947544536,-768.35,0.00043287,31]
[312534301,1705947544561,-1774.13,0.00043287,31]
[312534302,1705947544585,-604.97,0.00043287,31]
[312534303,1705947544611,-500.0,0.00043287,31]
[312534304,1705947544638,-1732.72,0.00043287,31]
[312534305,1705947544665,-1380.22,0.00043287,31]
[312534306,1705947544689,-873.08,0.00043287,31]
[312534307,1705947544715,-500.0,0.00043287,31]
[312534308,1705947544740,-1700.64,0.00043287,31]
[312534309,1705947544765,-500.0,0.00043287,31]
[312534310,1705947544793,-500.0,0.00043287,31]
[312534311,1705947544819,-638.47,0.00043287,31]
[312534312,1705947544846,-500.0,0.00043287,31]
[312534313,1705947544877,-500.0,0.00043287,31]
[312534314,1705947544903,-500.0,0.00043287,31]
[312534315,1705947544928,-829.19,0.00043287,31]
[312534316,1705947544953,-1817.75,0.00043287,31]
[312534317,1705947544978,-500.0,0.00043287,31]
[312534318,1705947545003,-500.0,0.00043287,31]
[312534319,1705947545031,-1681.68,0.00043287,31]
[312534320,1705947545058,-676.26,0.00043287,31]
[312534321,1705947545086,-500.0,0.00043287,31]
[312534322,1705947545113,-240.31101063,0.00043287,31]
[312534323,1705947545138,-640.07,0.00043287,31]
[312534324,1705947545164,-552.87,0.00043287,31]
[312534325,1705947545190,-949.36,0.00043287,31]
[312534326,1705947545215,-1114.79,0.00043287,31]
[312534327,1705947545241,-1340.33,0.00043287,31]
[312534328,1705947545268,-1551.85,0.00043287,31]
[312534329,1705947545294,-1962.09,0.00043287,31]
[312534330,1705947545320,-1825.15,0.00043287,31]
[312534331,1705947545347,-2171.83,0.00043287,31]
[312534332,1705947545375,-500.0,0.00043287,31]
[312534333,1705947545401,-1619.98,0.00043287,31]
[312534334,1705947545427,-500.0,0.00043287,31]
[312534335,1705947545452,-741.59,0.00043287,31]
[312534336,1705947545478,-556.47,0.00043287,31]
[312534337,1705947545503,-1775.47,0.00043287,31]
[312534338,1705947545528,-500.0,0.00043287,31]
[312534339,1705947545554,-564.89,0.00043287,31]
[312534340,1705947545580,-1289.28,0.00043287,31]
[312534341,1705947545609,-500.0,0.00043287,31]
[312534342,1705947545635,-1337.29,0.00043287,31]
[312534343,1705947545662,-1443.88,0.00043287,31]
[312534344,1705947545688,-150.0,0.000434,30]
[312534345,1705947545823,-298.0,0.00043496,90]
[312534346,1705947545856,-1000000.0,0.000435,120]
[312534347,1705947545889,-137133.11941111,0.000435,120]
[312534348,1705947562741,-245.30368558,0.00039,30]
[312534349,1705947562775,-500.0,0.00041095,31]
[312534350,1705947562802,-500.0,0.00041095,31]
[312534351,1705947562830,-500.0,0.00041095,31]
[312534352,1705947562856,-500.0,0.00041095,31]
[312534353,1705947562884,-518.25,0.00041095,31]
[312534354,1705947562911,-500.0,0.00041369,31]
[312534355,1705947562938,-500.0,0.00041369,31]
[312534356,1705947562964,-500.0,0.00041369,31]
[312534357,1705947562992,-500.0,0.00041369,31]
[312534358,1705947563022,-518.25,0.00041369,31]
[312534359,1705947563051,-500.0,0.00041643,31]
[312534360,1705947563078,-500.0,0.00041643,31]
[312534361,1705947563104,-500.0,0.00041643,31]
[312534362,1705947563132,-518.20579275,0.00041643,31]
[312534363,1705947563158,-518.25,0.00041643,31]
[312534364,1705947563184,-500.0,0.00041917,31]
[312534365,1705947563210,-500.0,0.00041917,31]
[312534366,1705947563237,-500.0,0.00041917,31]
[312534367,1705947563264,-518.25,0.00041917,31]
[312534368,1705947563294,-500.0,0.00042191,31]
[312534369,1705947563319,-500.0,0.00042191,31]
[312534370,1705947563345,-500.0,0.00042191,31]
[312534371,1705947563371,-518.25,0.00042191,31]
[312534372,1705947563396,-500.0,0.00042465,31]
[312534373,1705947563421,-500.0,0.00042465,31]
[312534374,1705947563446,-500.0,0.00042465,31]
[312534375,1705947563471,-518.25,0.00042465,31]
[312534376,1705947563497,-500.0,0.00042739,31]
[312534377,1705947563521,-500.0,0.00042739,31]
[312534378,1705947563546,-500.0,0.00042739,31]
[312534379,1705947563572,-518.25,0.00042739,31]
[312534380,1705947563598,-500.0,0.00043013,31]
[312534381,1705947563623,-500.0,0.00043013,31]
[312534382,1705947563647,-500.0,0.00043013,31]
[312534383,1705947563671,-518.25,0.00043013,31]
[312534384,1705947563696,-500.0,0.00043287,31]
[312534385,1705947563720,-373.46113135,0.00043287,31]
[312534386,1705947563745,-500.0,0.00043287,31]
[312534387,1705947563770,-518.25,0.00043287,31]
[312534388,1705947563795,-862866.88058889,0.000435,120]
[312534389,1705947563820,-1000000.0,0.000435,120]
[312534390,1705947563846,-500.0,0.00043561,31]
[312534391,1705947563874,-500.0,0.00043561,31]
[312534392,1705947563901,-500.0,0.00043561,31]
[312534393,1705947563927,-500.0,0.00043561,31]
[312534394,1705947563952,-567.11,0.00043561,31]
[312534395,1705947563977,-1126.09,0.00043561,31]
[312534396,1705947564002,-1014.23,0.00043561,31]
[312534397,1705947564027,-515.2,0.00043561,31]
[312534398,1705947564052,-645.24954542,0.00043561,31]
[312534399,1705947564077,-500.0,0.00043561,31]
[312534400,1705947564103,-500.0,0.00043561,31]
[312534401,1705947564131,-500.0,0.00043561,31]
[312534402,1705947564157,-500.0,0.00043561,31]
[312534403,1705947564184,-679.61,0.00043561,31]
[312534404,1705947564213,-801.83,0.00043561,31]
[312534405,1705947564238,-1114.81,0.00043561,31]
[312534406,1705947564266,-529.18,0.00043561,31]
[312534407,1705947564293,-768.35,0.00043561,31]
[312534408,1705947564414,-1774.13,0.00043561,31]
[312534409,1705947564442,-604.97,0.00043561,31]
[312534410,1705947564468,-500.0,0.00043561,31]
[312534411,1705947564494,-873.08,0.00043561,31]
[312534412,1705947564520,-1700.64,0.00043561,31]
[312534413,1705947564545,-500.0,0.00043561,31]
[312534414,1705947564570,-500.0,0.00043561,31]
[312534415,1705947564595,-500.0,0.00043561,31]
[312534416,1705947564621,-500.0,0.00043561,31]
[312534417,1705947564646,-1817.75,0.00043561,31]
[312534418,1705947564670,-500.0,0.00043561,31]
[312534419,1705947564696,-500.0,0.00043561,31]
[312534420,1705947564721,-1681.68,0.00043561,31]
[312534421,1705947564747,-676.26,0.00043561,31]
[312534422,1705947564773,-500.0,0.00043561,31]
[312534423,1705947564799,-640.07,0.00043561,31]
[312534424,1705947564825,-552.87,0.00043561,31]
[312534425,1705947564850,-949.36,0.00043561,31]
[312534426,1705947564877,-1114.79,0.00043561,31]
[312534427,1705947564906,-1340.33,0.00043561,31]
[312534428,1705947564932,-1551.85,0.00043561,31]
[312534429,1705947564957,-1962.09,0.00043561,31]
[312534430,1705947564984,-1825.15,0.00043561,31]
[312534431,1705947565009,-2171.83,0.00043561,31]
[312534432,1705947565034,-500.0,0.00043561,31]
[312534433,1705947565059,-1619.98,0.00043561,31]
[312534434,1705947565083,-500.0,0.00043561,31]
[312534435,1705947565113,-741.59,0.00043561,31]
[312534436,1705947565140,-556.47,0.00043561,31]
[312534437,1705947565165,-1775.47,0.00043561,31]
[312534438,1705947565190,-500.0,0.00043561,31]
[312534439,1705947565215,-564.89,0.00043561,31]
[312534440,1705947565242,-1289.28,0.00043561,31]
[312534441,1705947565267,-500.0,0.00043561,31]
[312534442,1705947565293,-1337.29,0.00043561,31]
[312534443,1705947565317,-1443.88,0.00043561,31]
[312534444,1705947565342,-500.0,0.00043561,31]
[312534445,1705947565367,-500.0,0.00043561,31]
[312534446,1705947565399,-518.25,0.00043561,31]
[312534447,1705947565425,-8274.79299,0.0004357,30]
[312534448,1705947565452,-150.0,0.000436,30]
[312534449,1705947565478,-150.0,0.00043611,120]
[312534450,1705947565504,-150.0,0.000438,30]
[312534451,1705947565531,-500.0,0.00043835,31]
[312534452,1705947565558,-500.0,0.00043835,31]
[312534453,1705947565584,-500.0,0.00043835,31]
[312534454,1705947565609,-500.0,0.00043835,31]
[312534455,1705947565635,-567.11,0.00043835,31]
[312534456,1705947565660,-1126.09,0.00043835,31]
[312534457,1705947565686,-1014.23,0.00043835,31]
[312534458,1705947565712,-515.2,0.00043835,31]
[312534459,1705947565738,-500.0,0.00043835,31]
[312534460,1705947565763,-500.0,0.00043835,31]
[312534461,1705947565790,-500.0,0.00043835,31]
[312534462,1705947565815,-500.0,0.00043835,31]
[312534463,1705947565840,-679.61,0.00043835,31]
[312534464,1705947565866,-801.83,0.00043835,31]
[312534465,1705947565892,-1114.81,0.00043835,31]
[312534466,1705947565918,-529.18,0.00043835,31]
[312534467,1705947565943,-768.35,0.00043835,31]
[312534468,1705947565969,-1774.13,0.00043835,31]
[312534469,1705947565994,-604.97,0.00043835,31]
[312534470,1705947566021,-500.0,0.00043835,31]
[312534471,1705947566047,-873.08,0.00043835,31]
[312534472,1705947566074,-1700.64,0.00043835,31]
[312534473,1705947566099,-500.0,0.00043835,31]
[312534474,1705947566127,-500.0,0.00043835,31]
[312534475,1705947566153,-312.375753,0.00043835,31]
[312534476,1705947566179,-528.39419625,0.00043835,31]
[312534477,1705947566205,-1817.75,0.00043835,31]
[312534478,1705947566231,-500.0,0.00043835,31]
[312534479,1705947566258,-500.0,0.00043835,31]
[312534480,1705947566285,-1681.68,0.00043835,31]
[312534481,1705947566401,-676.26,0.00043835,31]
[312534482,1705947566430,-500.0,0.00043835,31]
[312534483,1705947566457,-640.07,0.00043835,31]
[312534484,1705947566484,-552.87,0.00043835,31]
[312534485,1705947566510,-949.36,0.00043835,31]
[312534486,1705947566535,-1114.79,0.00043835,31]
[312534487,1705947566563,-1340.33,0.00043835,31]
[312534488,1705947566590,-1551.85,0.00043835,31]
[312534489,1705947566617,-1962.09,0.00043835,31]
[312534490,1705947566644,-1825.15,0.00043835,31]
[312534491,1705947566672,-2171.83,0.00043835,31]
[312534492,1705947566698,-500.0,0.00043835,31]
[312534493,1705947566723,-1619.98,0.00043835,31]
[312534494,1705947566750,-500.0,0.00043835,31]
[312534495,1705947566776,-741.59,0.00043835,31]
[312534496,1705947566802,-556.47,0.00043835,31]
[312534497,1705947566827,-1775.47,0.00043835,31]
[312534498,1705947566853,-500.0,0.00043835,31]
[312534499,1705947566879,-564.89,0.00043835,31]
[312534500,1705947566904,-1289.28,0.00043835,31]
[312534501,1705947566930,-500.0,0.00043835,31]
[312534502,1705947566955,-1337.29,0.00043835,31]
[312534503,1705947566982,-1443.88,0.00043835,31]
[312534504,1705947567009,-500.0,0.00043835,31]
[312534505,1705947567036,-500.0,0.00043835,31]
[312534506,1705947567062,-518.25,0.00043835,31]
[312534507,1705947567093,-150.0,0.00044,30]
[312534508,1705947567119,-1003.4282895,0.00044,120]
[312534509,1705947567146,-1000.0,0.00044,44]
[312534510,1705947567172,-525.0,0.00044,120]
[312534511,1705947567198,-7041.93802726,0.00044,120]
[312534512,1705947570782,-1244.33583134,0.0004,30]
[312534513,1705947570807,-500.0,0.0004039,30]
[312534514,1705947570834,-500.0,0.00041095,31]
[312534515,1705947570861,-500.0,0.00041369,31]
[312534516,1705947570888,-582.7460264,0.00041643,31]
[312534517,1705947570924,-992958.06197274,0.00044,120]
[312534518,1705947570951,-1000000.0,0.00044,120]
[312534519,1705947570977,-706.39641346,0.00044056,30]
[312534520,1705947571111,-500.0,0.00044109,31]
[312534521,1705947571138,-500.0,0.00044109,31]
[312534522,1705947571163,-500.0,0.00044109,31]
[312534523,1705947571187,-500.0,0.00044109,31]
[312534524,1705947571212,-567.11,0.00044109,31]
[312534525,1705947571236,-441.34975606,0.00044109,31]
[312534526,1705947574303,-245.30368558,0.00039,30]
[312534527,1705947574357,-684.74024394,0.00044109,31]
[312534528,1705947574385,-1014.23,0.00044109,31]
[312534529,1705947574412,-515.2,0.00044109,31]
[312534530,1705947574438,-500.0,0.00044109,31]
[312534531,1705947574464,-500.0,0.00044109,31]
[312534532,1705947574491,-500.0,0.00044109,31]
[312534533,1705947574518,-500.0,0.00044109,31]
[312534534,1705947574545,-679.61,0.00044109,31]
[312534535,1705947574571,-801.83,0.00044109,31]
[312534536,1705947574597,-1114.81,0.00044109,31]
[312534537,1705947574624,-529.18,0.00044109,31]
[312534538,1705947574650,-768.35,0.00044109,31]
[312534539,1705947574676,-1774.13,0.00044109,31]
[312534540,1705947574704,-604.97,0.00044109,31]
[312534541,1705947574730,-500.0,0.00044109,31]
[312534542,1705947574755,-873.08,0.00044109,31]
[312534543,1705947574782,-1700.64,0.00044109,31]
[312534544,1705947574808,-487.4492228,0.00044109,31]
[312534545,1705947574834,-500.0,0.00044109,31]
[312534546,1705947574861,-1817.75,0.00044109,31]
[312534547,1705947574888,-500.0,0.00044109,31]
[312534548,1705947574915,-676.26,0.00044109,31]
[312534549,1705947574941,-500.0,0.00044109,31]
[312534550,1705947574967,-640.07,0.00044109,31]
[312534551,1705947574992,-552.87,0.00044109,31]
[312534552,1705947575019,-1114.79,0.00044109,31]
[312534553,1705947575047,-949.36,0.00044109,31]
[312534554,1705947575074,-1340.33,0.00044109,31]
[312534555,1705947575101,-1551.85,0.00044109,31]
[312534556,1705947575132,-1962.09,0.00044109,31]
[312534557,1705947575159,-1825.15,0.00044109,31]
[312534558,1705947575186,-2171.83,0.00044109,31]
[312534559,1705947575214,-500.0,0.00044109,31]
[312534560,1705947575243,-1619.98,0.00044109,31]
[312534561,1705947575270,-500.0,0.00044109,31]
[312534562,1705947575297,-741.59,0.00044109,31]
[312534563,1705947575325,-556.47,0.00044109,31]
[312534564,1705947575351,-1775.47,0.00044109,31]
[312534565,1705947575379,-500.0,0.00044109,31]
[312534566,1705947575406,-564.89,0.00044109,31]
[312534567,1705947575432,-1289.28,0.00044109,31]
[312534568,1705947575460,-500.0,0.00044109,31]
[312534569,1705947575487,-1337.29,0.00044109,31]
[312534570,1705947575516,-1443.88,0.00044109,31]
[312534571,1705947575543,-500.0,0.00044109,31]
[312534572,1705947575570,-500.0,0.00044109,31]
[312534573,1705947575597,-518.25,0.00044109,31]
[312534574,1705947575623,-4153.44898112,0.00044125,90]
[312534575,1705947575649,-150.0,0.00044132,30]
[312534576,1705947575687,-150.0,0.000442,30]
[312534577,1705947575835,-2000.0,0.00044239,30]
[312534578,1705947575863,-500.0,0.00044383,31]
[312534579,1705947575890,-500.0,0.00044383,31]
[312534580,1705947575917,-157.32169689,0.00044383,31]
[312534581,1705947575942,-450.31793252,0.00044383,31]
[312534582,1705947575968,-567.11,0.00044383,31]
[312534583,1705947575994,-1126.09,0.00044383,31]
[312534584,1705947576021,-1014.23,0.00044383,31]
[312534585,1705947576048,-515.2,0.00044383,31]
[312534586,1705947576074,-500.0,0.00044383,31]
[312534587,1705947576100,-500.0,0.00044383,31]
[312534588,1705947576128,-500.0,0.00044383,31]
[312534589,1705947576153,-500.0,0.00044383,31]
[312534590,1705947576179,-679.61,0.00044383,31]
[312534591,1705947576206,-801.83,0.00044383,31]
[312534592,1705947576233,-1114.81,0.00044383,31]
[312534593,1705947576259,-529.18,0.00044383,31]
[312534594,1705947576284,-768.35,0.00044383,31]
[312534595,1705947576312,-1774.13,0.00044383,31]
[312534596,1705947576339,-604.97,0.00044383,31]
[312534597,1705947576365,-500.0,0.00044383,31]
[312534598,1705947576393,-873.08,0.00044383,31]
[312534599,1705947576420,-1700.64,0.00044383,31]
[312534600,1705947576446,-500.0,0.00044383,31]
[312534601,1705947576474,-1817.75,0.00044383,31]
[312534602,1705947576500,-500.0,0.00044383,31]
[312534603,1705947576526,-676.26,0.00044383,31]
[312534604,1705947576552,-500.0,0.00044383,31]
[312534605,1705947576577,-640.07,0.00044383,31]
[312534606,1705947576604,-552.87,0.00044383,31]
[312534607,1705947576632,-1114.79,0.00044383,31]
[312534608,1705947576658,-949.36,0.00044383,31]
[312534609,1705947576685,-1340.33,0.00044383,31]
[312534610,1705947576713,-1551.85,0.00044383,31]
[312534611,1705947576740,-1962.09,0.00044383,31]
[312534612,1705947576766,-1825.15,0.00044383,31]
[312534613,1705947576793,-2171.83,0.00044383,31]
[312534614,1705947576820,-500.0,0.00044383,31]
[312534615,1705947576847,-1619.98,0.00044383,31]
[312534616,1705947576874,-500.0,0.00044383,31]
[312534617,1705947576901,-741.59,0.00044383,31]
[312534618,1705947576927,-556.47,0.00044383,31]
[312534619,1705947576953,-1775.47,0.00044383,31]
[312534620,1705947576978,-500.0,0.00044383,31]
[312534621,1705947577003,-564.89,0.00044383,31]
[312534622,1705947577030,-1289.28,0.00044383,31]
[312534623,1705947577055,-500.0,0.00044383,31]
[312534624,1705947577081,-1337.29,0.00044383,31]
[312534625,1705947577107,-1443.88,0.00044383,31]
[312534626,1705947577132,-500.0,0.00044383,31]
[312534627,1705947577156,-500.0,0.00044383,31]
[312534628,1705947577182,-518.25,0.00044383,31]
[312534629,1705947577207,-150.0,0.000444,30]
[312534630,1705947577232,-184.88861378,0.000445,30]
[312534631,1705947577256,-1000.0,0.000445,120]
[312534632,1705947577280,-1000.0,0.000445,120]
[312534633,1705947577304,-150.0,0.000446,30]
[312534634,1705947577329,-500.0,0.00044657,31]
[312534635,1705947577353,-549.02626748,0.00044657,31]
[312534636,1705947577380,-567.11,0.00044657,31]
[312534637,1705947577405,-1126.09,0.00044657,31]
[312534638,1705947577431,-1014.23,0.00044657,31]
[312534639,1705947577456,-515.2,0.00044657,31]
[312534640,1705947577481,-500.0,0.00044657,31]
[312534641,1705947577506,-500.0,0.00044657,31]
[312534642,1705947577531,-500.0,0.00044657,31]
[312534643,1705947577556,-500.0,0.00044657,31]
[312534644,1705947577672,-679.61,0.00044657,31]
[312534645,1705947577698,-801.83,0.00044657,31]
[312534646,1705947577723,-1114.81,0.00044657,31]
[312534647,1705947577748,-529.18,0.00044657,31]